lending/lending_fUSD_20240128
["ID","MTS","AMOUNT","RATE_DAILY","PERIOD"]
[312922819,1706461879835,-8393.83,0.00053424,31]
[312922820,1706461879845,-500.0,0.00053424,31]
[312922821,1706461879855,-798.98,0.00053424,31]
[312922822,1706461879865,-922.9,0.00053424,31]
[312922823,1706461879875,-500.0,0.00053424,31]
[312922824,1706461879885,-524.34,0.00053424,31]
[312922825,1706461879894,-1822.32,0.00053424,31]
[312922826,1706461879904,-500.0,0.00053424,31]
[312922827,1706461879913,-500.0,0.00053424,31]
[312922828,1706461879924,-500.0,0.00053424,31]
[312922829,1706461879934,-500.0,0.00053424,31]
[312922830,1706461879944,-500.0,0.00053424,31]
[312922831,1706461879954,-500.0,0.00053424,31]
[312922832,1706461879963,-500.0,0.00053424,31]
[312922833,1706461879973,-500.0,0.00053424,2]
[312922834,1706461879982,-604.09,0.00053424,31]
[312922835,1706461879991,-500.0,0.00053424,31]
[312922836,1706461880000,-511.29,0.00053424,31]
[312922837,1706461880009,-500.0,0.00053424,31]
[312922838,1706461880019,-500.0,0.00053424,31]
[312922839,1706461880028,-500.0,0.00053424,31]
[312922840,1706461880038,-500.0,0.00053424,31]
[312922841,1706461880047,-500.0,0.00053424,31]
[312922842,1706461880057,-500.0,0.00053424,7]
[312922843,1706461880066,-500.0,0.00053424,31]
[312922844,1706461880076,-500.0,0.00053424,31]
[312922845,1706461880135,-500.0,0.00053424,2]
[312922846,1706461880145,-3178.15,0.00053424,5]
[312922847,1706461880155,-500.0,0.00053424,31]
[312922848,1706461880165,-500.0,0.00053424,31]
[312922849,1706461880176,-2847.83,0.00053424,31]
[312922850,1706461880185,-500.0,0.00053424,31]
[312922851,1706461880195,-500.0,0.00053424,31]
[312922852,1706461880205,-500.0,0.00053424,2]
[312922853,1706461880215,-500.0,0.00053424,31]
[312922854,1706461880225,-500.0,0.00053424,31]
[312922855,1706461880234,-150.34028937,0.00053432,60]
[312922856,1706461880244,-155.9745539,0.00053438,60]
[312922857,1706461880254,-1248.3644934,0.00053442,60]
[312922858,1706461880264,-157.72167214,0.0005345,60]
[312922859,1706461880274,-150.34028937,0.00053453,60]
[312922860,1706461880284,-152.0,0.00053458,7]
[312922861,1706461880293,-60942.0,0.0005346,30]
[312922862,1706461880303,-2361.0,0.0005346,30]
[312922863,1706461880313,-150.88297571,0.00053461,60]
[312922864,1706461880322,-4080.0,0.00053463,7]
[312922865,1706461880332,-317.7090076,0.00053463,2]
[312922866,1706461880342,-1248.3644934,0.00053463,60]
[312922867,1706461880351,-155.46597402,0.00053478,60]
[312922868,1706461880361,-1495.18324462,0.00053479,60]
[312922869,1706461880371,-360.32885597,0.00053483,60]
[312922870,1706461880381,-161.06867272,0.00053486,60]
[312922871,1706461880391,-153.60830703,0.00053487,30]
[312922872,1706461880400,-1248.3644934,0.00053487,60]
[312922873,1706461880410,-150.88297571,0.00053489,60]
[312922874,1706461880419,-1248.3644934,0.00053494,60]
[312922875,1706461880429,-1000000.0,0.000535,120]
[312922876,1706461880439,-1000000.0,0.000535,120]
[312922877,1706461880449,-268.229501,0.000535,30]
[312922878,1706461880459,-311.685356,0.000535,14]
[312922879,1706461880469,-311.685356,0.000535,14]
[312922880,1706461880479,-1334.294265,0.000535,14]
[312922881,1706461880491,-3891.12,0.00053503,30]
[312922882,1706461880501,-3891.12,0.00053503,30]
[312922883,1706461880511,-161.06867272,0.00053512,60]
[312922884,1706461880520,-155.9745539,0.00053516,60]
[312922885,1706461880531,-158.32544091,0.00053525,60]
[312922886,1706461880540,-1495.18324462,0.00053526,60]
[312922887,1706461880551,-150.34028937,0.00053532,60]
[312922888,1706461880560,-153.65415843,0.00053534,120]
[312922889,1706461880570,-158.52895405,0.00053538,60]
[312922890,1706461880580,-1248.3644934,0.00053541,60]
[312922891,1706461880590,-161.06867272,0.00053543,60]
[312922892,1706461880600,-162.77789855,0.00053551,60]
[312922893,1706461880610,-287.87291238,0.00053554,60]
[312922894,1706461880619,-50000.0,0.00053555,14]
[312922895,1706461880629,-1495.18324462,0.0005356,60]
[312922896,1706461880639,-157.0406716,0.00053576,60]
[312922897,1706461880650,-150.34028937,0.00053576,60]
[312922898,1706461880660,-155.31335174,0.00053577,60]
[312922899,1706461880670,-173.66367173,0.00053589,60]
[312922900,1706461880679,-150.34028937,0.00053599,60]
[312922901,1706461880689,-360.32885597,0.00053609,60]
[312922902,1706461880698,-287.87291238,0.00053615,60]
[312922903,1706461880709,-155.10176526,0.00053621,60]
[312922904,1706461880718,-360.32885597,0.00053637,60]
[312922905,1706461880728,-150.34028937,0.00053645,60]
[312922906,1706461880738,-287.87291238,0.00053648,60]
[312922907,1706461880748,-168.86088493,0.00053649,60]
[312922908,1706461880758,-155.10176526,0.0005365,60]
[312922909,1706461880767,-158.32544091,0.00053652,60]
[312922910,1706461880777,-150.34028937,0.00053653,60]
[312922911,1706461880787,-1495.18324462,0.00053666,60]
[312922912,1706461880796,-1495.18324462,0.00053669,60]
[312922913,1706461880807,-157.72167214,0.0005367,60]
[312922914,1706461880817,-150.88297571,0.00053672,60]
[312922915,1706461880826,-173.66367173,0.00053676,60]
[312922916,1706461880836,-157.72167214,0.00053691,60]
[312922917,1706461880845,-287.87291238,0.00053696,60]
[312922918,1706461880855,-155.46597402,0.00053696,60]
[312922919,1706461880865,-500.0,0.00053698,30]
[312922920,1706461880874,-500.0,0.00053698,31]
[312922921,1706461880883,-500.0,0.00053698,31]
[312922922,1706461880893,-500.0,0.00053698,31]
[312922923,1706461880903,-500.0,0.00053698,31]
[312922924,1706461880913,-500.0,0.00053698,31]
[312922925,1706461880923,-550.0,0.00053698,30]
[312922926,1706461880933,-500.0,0.00053698,31]
[312922927,1706461880943,-500.0,0.00053698,31]
[312922928,1706461880952,-500.0,0.00053698,31]
[312922929,1706461880962,-500.0,0.00053698,31]
[312922930,1706461880972,-500.0,0.00053698,31]
[312922931,1706461880981,-500.0,0.00053698,31]
[312922932,1706461880990,-1173.31,0.00053698,7]
[312922933,1706461881000,-468.50294989,0.00053698,31]
[312922934,1706461881009,-500.0,0.00053698,31]
[312922935,1706461881019,-500.0,0.00053698,31]
[312922936,1706461881028,-500.0,0.00053698,31]
[312922937,1706461881038,-500.0,0.00053698,31]
[312922938,1706461881048,-1000.0,0.00053698,20]
[312922939,1706461881057,-500.0,0.00053698,31]
[312922940,1706461881067,-500.0,0.00053698,31]
[312922941,1706461881076,-286.90072692,0.00053698,31]
[312922942,1706461881086,-500.0,0.00053698,31]
[312922943,1706461881095,-500.0,0.00053698,31]
[312922944,1706461881105,-500.0,0.00053698,31]
[312922945,1706461881114,-500.0,0.00053698,31]
[312922946,1706461881123,-500.0,0.00053698,31]
[312922947,1706461881133,-500.0,0.00053698,31]
[312922948,1706461881142,-500.0,0.00053698,31]
[312922949,1706461881152,-289.08116484,0.00053698,31]
[312922950,1706461881161,-563.76,0.00053698,31]
[312922951,1706461881171,-799.38,0.00053698,31]
[312922952,1706461881181,-500.0,0.00053698,31]
[312922953,1706461881191,-284.7339485,0.00053698,31]
[312922954,1706461881200,-500.0,0.00053698,31]
[312922955,1706461881210,-541.19375737,0.00053698,31]
[312922956,1706461881221,-500.0,0.00053698,31]
[312922957,1706461881231,-500.0,0.00053698,31]
[312922958,1706461881241,-500.0,0.00053698,31]
[312922959,1706461881251,-500.0,0.00053698,31]
[312922960,1706461881261,-500.0,0.00053698,31]
[312922961,1706461881272,-500.0,0.00053698,31]
[312922962,1706461881283,-500.0,0.00053698,31]
[312922963,1706461881292,-500.0,0.00053698,31]
[312922964,1706461881306,-500.0,0.00053698,31]
[312922965,1706461881316,-1046.7,0.00053698,31]
[312922966,1706461881328,-500.0,0.00053698,31]
[312922967,1706461881338,-500.0,0.00053698,31]
[312922968,1706461881349,-928.12,0.00053698,2]
[312922969,1706461881359,-500.0,0.00053698,31]
[312922970,1706461881369,-500.0,0.00053698,31]
[312922971,1706461881378,-500.0,0.00053698,31]
[312922972,1706461881388,-524.66,0.00053698,31]
[312922973,1706461881398,-500.0,0.00053698,31]
[312922974,1706461881407,-500.0,0.00053698,31]
[312922975,1706461881417,-500.0,0.00053698,31]
[312922976,1706461881427,-500.0,0.00053698,31]
[312922977,1706461881436,-500.0,0.00053698,31]
[312922978,1706461881445,-500.0,0.00053698,31]
[312922979,1706461881455,-500.0,0.00053698,31]
[312922980,1706461881465,-500.0,0.00053698,31]
[312922981,1706461881476,-500.0,0.00053698,31]
[312922982,1706461881487,-500.0,0.00053698,31]
[312922983,1706461881498,-500.0,0.00053698,31]
[312922984,1706461881508,-1078.79,0.00053698,7]
[312922985,1706461881518,-500.0,0.00053698,31]
[312922986,1706461881527,-500.0,0.00053698,31]
[312922987,1706461881538,-500.0,0.00053698,31]
[312922988,1706461881548,-500.0,0.00053698,31]
[312922989,1706461881560,-500.0,0.00053698,31]
[312922990,1706461881572,-500.0,0.00053698,31]
[312922991,1706461881582,-500.0,0.00053698,31]
[312922992,1706461881592,-500.0,0.00053698,31]
[312922993,1706461881602,-500.0,0.00053698,31]
[312922994,1706461881611,-500.0,0.00053698,31]
[312922995,1706461881621,-500.0,0.00053698,31]
[312922996,1706461881630,-1006.81,0.00053698,2]
[312922997,1706461881640,-500.0,0.00053698,31]
[312922998,1706461881650,-500.0,0.00053698,31]
[312922999,1706461881659,-500.0,0.00053698,31]
[312923000,1706461881669,-500.0,0.00053698,31]
[312923001,1706461881679,-625.02,0.00053698,31]
[312923002,1706461881689,-500.0,0.00053698,31]
[312923003,1706461881699,-500.0,0.00053698,31]
[312923004,1706461881709,-500.0,0.00053698,31]
[312923005,1706461881719,-500.0,0.00053698,31]
[312923006,1706461881729,-1325.01,0.00053698,31]
[312923007,1706461881739,-537.17,0.00053698,31]
[312923008,1706461881750,-753.5,0.00053698,31]
[312923009,1706461881759,-500.0,0.00053698,31]
[312923010,1706461881769,-998.26,0.00053698,2]
[312923011,1706461881779,-500.0,0.00053698,20]
[312923012,1706461881788,-500.0,0.00053698,31]
[312923013,1706461881799,-500.0,0.00053698,31]
[312923014,1706461881808,-500.0,0.00053698,31]
[312923015,1706461881817,-1182.48,0.00053698,31]
[312923016,1706461881827,-500.0,0.00053698,31]
[312923017,1706461881836,-500.0,0.00053698,31]
[312923018,1706461881845,-500.0,0.00053698,31]
[312923019,1706461881854,-500.0,0.00053698,31]
[312923020,1706461881863,-500.0,0.00053698,31]
[312923021,1706461881873,-500.0,0.00053698,31]
[312923022,1706461881882,-996.46,0.00053698,31]
[312923023,1706461881891,-500.0,0.00053698,31]
[312923024,1706461881901,-500.0,0.00053698,31]
[312923025,1706461881911,-500.0,0.00053698,2]
[312923026,1706461881920,-500.0,0.00053698,31]
[312923027,1706461881929,-500.0,0.00053698,31]
[312923028,1706461881939,-500.0,0.00053698,31]
[312923029,1706461881949,-500.0,0.00053698,15]
[312923030,1706461881958,-201.80744411,0.00053698,31]
[312923031,1706461881968,-500.0,0.00053698,31]
[312923032,1706461881977,-500.0,0.00053698,31]
[312923033,1706461881987,-623.45635415,0.00053698,31]
[312923034,1706461881996,-500.0,0.00053698,31]
[312923035,1706461882006,-1132.61,0.00053698,31]
[312923036,1706461882017,-994.13,0.00053698,2]
[312923037,1706461882026,-500.0,0.00053698,31]
[312923038,1706461882037,-500.0,0.00053698,31]
[312923039,1706461882047,-500.0,0.00053698,31]
[312923040,1706461882057,-500.0,0.00053698,31]
[312923041,1706461882067,-500.0,0.00053698,31]
[312923042,1706461882077,-855.69,0.00053698,31]
[312923043,1706461882087,-500.0,0.00053698,31]
[312923044,1706461882096,-500.0,0.00053698,31]
[312923045,1706461882106,-500.0,0.00053698,31]
[312923046,1706461882116,-500.0,0.00053698,31]
[312923047,1706461882126,-574.75,0.00053698,31]
[312923048,1706461882135,-500.0,0.00053698,31]
[312923049,1706461882144,-249.29437345,0.00053698,31]
[312923050,1706461882154,-1000.0,0.00053698,7]
[312923051,1706461882163,-500.0,0.00053698,31]
[312923052,1706461882172,-500.0,0.00053698,31]
[312923053,1706461882182,-500.0,0.00053698,31]
[312923054,1706461882191,-500.0,0.00053698,31]
[312923055,1706461882200,-500.0,0.00053698,31]
[312923056,1706461882210,-272.05225423,0.00053698,31]
[312923057,1706461882220,-500.0,0.00053698,31]
[312923058,1706461882229,-500.0,0.00053698,31]
[312923059,1706461882239,-500.0,0.00053698,31]
[312923060,1706461882249,-500.0,0.00053698,31]
[312923061,1706461882259,-563.2222164,0.00053698,31]
[312923062,1706461882268,-586.82,0.00053698,31]
[312923063,1706461882278,-500.0,0.00053698,31]
[312923064,1706461882287,-683.8,0.00053698,31]
[312923065,1706461882297,-500.0,0.00053698,31]
[312923066,1706461882308,-500.0,0.00053698,31]
[312923067,1706461882318,-1566.51,0.00053698,2]
[312923068,1706461882329,-500.0,0.00053698,31]
[312923069,1706461882338,-565.72,0.00053698,31]
[312923070,1706461882348,-500.0,0.00053698,31]
[312923071,1706461882358,-500.0,0.00053698,31]
[312923072,1706461882367,-500.0,0.00053698,31]
[312923073,1706461882377,-1000.0,0.00053698,2]
[312923074,1706461882386,-500.0,0.00053698,31]
[312923075,1706461882396,-500.0,0.00053698,31]
[312923076,1706461882406,-500.0,0.00053698,31]
[312923077,1706461882415,-3622.82,0.00053698,5]
[312923078,1706461882425,-500.0,0.00053698,31]
[312923079,1706461882435,-500.0,0.00053698,31]
[312923080,1706461882445,-158.40329263,0.00053698,31]
[312923081,1706461882454,-500.0,0.00053698,31]
[312923082,1706461882464,-500.0,0.00053698,31]
[312923083,1706461882473,-500.0,0.00053698,31]
[312923084,1706461882483,-500.0,0.00053698,31]
[312923085,1706461882495,-500.0,0.00053698,31]
[312923086,1706461882504,-500.0,0.00053698,31]
[312923087,1706461882514,-500.0,0.00053698,31]
[312923088,1706461882523,-575.7,0.00053698,31]
[312923089,1706461882533,-500.0,0.00053698,31]
[312923090,1706461882543,-500.0,0.00053698,31]
[312923091,1706461882554,-890.64,0.00053698,2]
[312923092,1706461882563,-500.0,0.00053698,31]
[312923093,1706461882573,-500.0,0.00053698,31]
[312923094,1706461882583,-1331.21,0.00053698,31]
[312923095,1706461882593,-500.0,0.00053698,31]
[312923096,1706461882603,-649.36,0.00053698,31]
[312923097,1706461882617,-500.0,0.00053698,31]
[312923098,1706461882627,-500.0,0.00053698,31]
[312923099,1706461882637,-1008.2,0.00053698,31]
[312923100,1706461882647,-500.0,0.00053698,31]
[312923101,1706461882657,-500.0,0.00053698,31]
[312923102,1706461882666,-500.0,0.00053698,31]
[312923103,1706461882676,-500.0,0.00053698,31]
[312923104,1706461882690,-500.0,0.00053698,31]
[312923105,1706461882699,-500.0,0.00053698,31]
[312923106,1706461882710,-500.0,0.00053698,31]
[312923107,1706461882719,-500.0,0.00053698,31]
[312923108,1706461882729,-500.0,0.00053698,31]
[312923109,1706461882738,-687.11,0.00053698,31]
[312923110,1706461882748,-500.0,0.00053698,31]
[312923111,1706461882757,-500.0,0.00053698,31]
[312923112,1706461882767,-707.32,0.00053698,31]
[312923113,1706461882776,-500.0,0.00053698,31]
[312923114,1706461882785,-2295.74,0.00053698,31]
[312923115,1706461882795,-709.25,0.00053698,31]
[312923116,1706461882807,-500.0,0.00053698,31]
[312923117,1706461882817,-500.0,0.00053698,31]
[312923118,1706461882826,-500.0,0.00053698,31]
[312923119,1706461882836,-642.2,0.00053698,31]
[312923120,1706461882846,-500.0,0.00053698,31]
[312923121,1706461882856,-500.0,0.00053698,120]
[312923122,1706461882865,-500.0,0.00053698,31]
[312923123,1706461882875,-834.44,0.00053698,31]
[312923124,1706461882885,-500.0,0.00053698,31]
[312923125,1706461882894,-1117.28,0.00053698,31]
[312923126,1706461882904,-500.0,0.00053698,31]
[312923127,1706461882913,-493.02377497,0.00053698,31]
[312923128,1706461882923,-500.0,0.00053698,31]
[312923129,1706461882932,-500.0,0.00053698,31]
[312923130,1706461882943,-500.0,0.00053698,31]
[312923131,1706461882953,-500.0,0.00053698,31]
[312923132,1706461882962,-500.0,0.00053698,31]
[312923133,1706461882972,-500.0,0.00053698,31]
[312923134,1706461882982,-500.0,0.00053698,31]
[312923135,1706461882991,-557.23,0.00053698,31]
[312923136,1706461883001,-500.0,0.00053698,31]
[312923137,1706461883012,-500.0,0.00053698,31]
[312923138,1706461883021,-651.16,0.00053698,31]
[312923139,1706461883032,-500.0,0.00053698,31]
[312923140,1706461883042,-806.83,0.00053698,31]
[312923141,1706461883053,-2058.6,0.00053698,31]
[312923142,1706461883063,-730.25,0.00053698,31]
[312923143,1706461883072,-500.0,0.00053698,31]
[312923144,1706461883081,-500.0,0.00053698,31]
[312923145,1706461883091,-667.21,0.00053698,31]
[312923146,1706461883100,-500.0,0.00053698,31]
[312923147,1706461883110,-500.0,0.00053698,31]
[312923148,1706461883119,-500.0,0.00053698,31]
[312923149,1706461883128,-500.0,0.00053698,31]
[312923150,1706461883138,-500.0,0.00053698,31]
[312923151,1706461883148,-500.0,0.00053698,31]
[312923152,1706461883158,-500.0,0.00053698,31]
[312923153,1706461883168,-315.29440811,0.00053698,31]
[312923154,1706461883178,-500.0,0.00053698,31]
[312923155,1706461883188,-500.0,0.00053698,31]
[312923156,1706461883198,-233.67332491,0.00053698,31]
[312923157,1706461883207,-500.0,0.00053698,31]
[312923158,1706461883217,-500.0,0.00053698,31]
[312923159,1706461883227,-500.0,0.00053698,31]
[312923160,1706461883236,-500.0,0.00053698,31]
[312923161,1706461883246,-500.0,0.00053698,31]
[312923162,1706461883256,-500.0,0.00053698,31]
[312923163,1706461883269,-565.54,0.00053698,31]
[312923164,1706461883279,-500.0,0.00053698,31]
[312923165,1706461883289,-500.0,0.00053698,31]
[312923166,1706461883299,-500.0,0.00053698,31]
[312923167,1706461883309,-500.0,0.00053698,31]
[312923168,1706461883319,-625.13,0.00053698,31]
[312923169,1706461883329,-500.0,0.00053698,31]
[312923170,1706461883340,-500.0,0.00053698,31]
[312923171,1706461883350,-1000.07,0.00053698,31]
[312923172,1706461883359,-500.0,0.00053698,31]
[312923173,1706461883369,-500.0,0.00053698,31]
[312923174,1706461883380,-543.15,0.00053698,31]
[312923175,1706461883390,-5121.69,0.00053698,31]
[312923176,1706461883400,-500.0,0.00053698,31]
[312923177,1706461883410,-500.0,0.00053698,31]
[312923178,1706461883419,-500.0,0.00053698,31]
[312923179,1706461883429,-722.32,0.00053698,31]
[312923180,1706461883439,-500.0,0.00053698,31]
[312923181,1706461883449,-528.28,0.00053698,31]
[312923182,1706461883459,-1171.0,0.00053698,31]
[312923183,1706461883468,-500.0,0.00053698,31]
[312923184,1706461883478,-500.0,0.00053698,31]
[312923185,1706461883490,-500.0,0.00053698,31]
[312923186,1706461883500,-500.0,0.00053698,31]
[312923187,1706461883678,-500.0,0.00053698,31]
[312923188,1706461883693,-856.58,0.00053698,31]
[312923189,1706461883703,-500.0,0.00053698,31]
[312923190,1706461883712,-500.0,0.00053698,31]
[312923191,1706461883722,-851.16,0.00053698,31]
[312923192,1706461883731,-504.37,0.00053698,31]
[312923193,1706461883741,-500.0,0.00053698,31]
[312923194,1706461883750,-3631.05,0.00053698,31]
[312923195,1706461883759,-500.0,0.00053698,31]
[312923196,1706461883768,-876.85,0.00053698,31]
[312923197,1706461883777,-780.4,0.00053698,31]
[312923198,1706461883787,-500.0,0.00053698,31]
[312923199,1706461883797,-500.0,0.00053698,31]
[312923200,1706461883807,-1037.01,0.00053698,31]
[312923201,1706461883816,-500.0,0.00053698,31]
[312923202,1706461883825,-500.0,0.00053698,31]
[312923203,1706461883834,-500.0,0.00053698,31]
[312923204,1706461883844,-8393.83,0.00053698,31]
[312923205,1706461883853,-500.0,0.00053698,31]
[312923206,1706461883862,-798.98,0.00053698,31]
[312923207,1706461883872,-922.9,0.00053698,31]
[312923208,1706461883881,-509.61991268,0.00053698,31]
[312923209,1706461883891,-524.34,0.00053698,31]
[312923210,1706461883900,-1822.32,0.00053698,31]
[312923211,1706461883910,-500.0,0.00053698,31]
[312923212,1706461883920,-500.0,0.00053698,31]
[312923213,1706461883929,-500.0,0.00053698,31]
[312923214,1706461883938,-500.0,0.00053698,31]
[312923215,1706461883947,-500.0,0.00053698,31]
[312923216,1706461883956,-500.0,0.00053698,31]
[312923217,1706461883966,-500.0,0.00053698,31]
[312923218,1706461883975,-500.0,0.00053698,2]
[312923219,1706461883985,-604.09,0.00053698,31]
[312923220,1706461883994,-500.0,0.00053698,31]
[312923221,1706461884003,-511.29,0.00053698,31]
[312923222,1706461884013,-500.0,0.00053698,31]
[312923223,1706461884022,-500.0,0.00053698,31]
[312923224,1706461884031,-424.36059515,0.00053698,31]
[312923225,1706461884041,-500.0,0.00053698,31]
[312923226,1706461884051,-500.0,0.00053698,31]
[312923227,1706461884061,-645.17958851,0.00053698,7]
[312923228,1706461884071,-500.0,0.00053698,31]
[312923229,1706461884081,-500.0,0.00053698,2]
[312923230,1706461884090,-3178.15,0.00053698,5]
[312923231,1706461884099,-500.0,0.00053698,31]
[312923232,1706461884108,-500.0,0.00053698,31]
[312923233,1706461884118,-500.0,0.00053698,31]
[312923234,1706461884127,-2847.83,0.00053698,31]
[312923235,1706461884137,-500.0,0.00053698,31]
[312923236,1706461884146,-500.0,0.00053698,31]
[312923237,1706461884156,-500.0,0.00053698,2]
[312923238,1706461884165,-500.0,0.00053698,31]
[312923239,1706461884174,-500.0,0.00053698,31]
[312923240,1706461884184,-1673.52833217,0.00053698,2]
[312923241,1706461884193,-500.0,0.00053699,90]
[312923242,1706461884202,-500.0,0.00053699,30]
[312923243,1706461884211,-619.0,0.000537,120]
[312923244,1706461884221,-301.358509,0.000537,14]
[312923245,1706461884230,-150.0,0.000537,24]
[312923246,1706461884239,-159.53191826,0.00053703,60]
[312923247,1706461884248,-157.72167214,0.00053704,60]
[312923248,1706461884257,-152.82946364,0.00053706,60]
[312923249,1706461884267,-486.04661929,0.00053708,120]
[312923250,1706461884276,-155.46597402,0.00053719,60]
[312923251,1706461884286,-1495.18324462,0.00053721,60]
[312923252,1706461884295,-155.31335175,0.00053725,60]
[312923253,1706461884306,-173.99940086,0.00053733,60]
[312923254,1706461884316,-1248.3644934,0.0005374,60]
[312923255,1706461884325,-360.32885597,0.00053741,60]
[312923256,1706461884335,-1495.18324462,0.00053746,60]
[312923257,1706461884344,-150.0,0.00053751,30]
[312923258,1706461884354,-155.46597402,0.00053759,60]
[312923259,1706461884365,-360.32885597,0.00053761,60]
[312923260,1706461884375,-161.06867272,0.00053762,60]
[312923261,1706461884385,-287.87291238,0.00053778,60]
[312923262,1706461884394,-19144.94294103,0.000538,120]
[312923263,1706461884403,-407.185071,0.000538,24]
[312923264,1706461884412,-158.32544091,0.00053802,60]
[312923265,1706461884422,-1495.18324462,0.00053808,60]
[312923266,1706461884431,-161.06867272,0.00053811,60]
[312923267,1706461884440,-157.72167214,0.00053814,60]
[312923268,1706461884450,-360.32885597,0.00053817,60]
[312923269,1706461884459,-150.50894753,0.00053819,60]
[312923270,1706461884468,-158.32544091,0.00053823,60]
[312923271,1706461884478,-173.58026709,0.00053827,60]
[312923272,1706461884490,-157.72167214,0.0005383,60]
[312923273,1706461884499,-1495.18324462,0.00053849,60]
[312923274,1706461884509,-1278.46325433,0.00053852,120]
[312923275,1706461884518,-150.34028937,0.00053861,60]
[312923276,1706461884527,-1495.18324462,0.00053876,60]
[312923277,1706461884537,-150.50894753,0.0005388,60]
[312923278,1706461884546,-3230.13861787,0.00053887,120]
[312923279,1706461884559,-150.0,0.00053891,30]
[312923280,1706461884573,-1248.3644934,0.00053893,60]
[312923281,1706461884585,-360.32885597,0.00053893,60]
[312923282,1706461884595,-189.98788101,0.000539,120]
[312923283,1706461884603,-300.0,0.000539,32]
[312923284,1706461884613,-200.0,0.000539,32]
[312923285,1706461884622,-173.66367173,0.00053907,60]
[312923286,1706461884631,-155.10176526,0.00053926,60]
[312923287,1706461884640,-158.44565292,0.00053931,60]
[312923288,1706461884650,-155.9745539,0.00053959,60]
[312923289,1706461884660,-317.7090076,0.00053963,2]
[312923290,1706461884670,-360.32885597,0.00053965,60]
[312923291,1706461884679,-500.0,0.00053972,30]
[312923292,1706461884689,-500.0,0.00053972,31]
[312923293,1706461884699,-591.32982642,0.00053972,31]
[312923294,1706461884709,-500.0,0.00053972,31]
[312923295,1706461884718,-500.0,0.00053972,31]
[312923296,1706461884728,-500.0,0.00053972,31]
[312923297,1706461884737,-550.0,0.00053972,30]
[312923298,1706461884747,-500.0,0.00053972,31]
[312923299,1706461884757,-500.0,0.00053972,31]
[312923300,1706461884766,-500.0,0.00053972,31]
[312923301,1706461884776,-500.0,0.00053972,31]
[312923302,1706461884786,-500.0,0.00053972,31]
[312923303,1706461884795,-500.0,0.00053972,31]
[312923304,1706461884807,-1173.31,0.00053972,7]
[312923305,1706461884817,-500.0,0.00053972,31]
[312923306,1706461884826,-500.0,0.00053972,31]
[312923307,1706461884836,-500.0,0.00053972,31]
[312923308,1706461884845,-356.96536751,0.00053972,31]
[312923309,1706461884855,-1000.0,0.00053972,20]
[312923310,1706461884864,-500.0,0.00053972,31]
[312923311,1706461884873,-500.0,0.00053972,31]
[312923312,1706461884882,-500.0,0.00053972,31]
[312923313,1706461884892,-540.45129012,0.00053972,31]
[312923314,1706461884901,-500.0,0.00053972,31]
[312923315,1706461884911,-500.0,0.00053972,31]
[312923316,1706461884920,-500.0,0.00053972,31]
[312923317,1706461884929,-500.0,0.00053972,31]
[312923318,1706461884939,-500.0,0.00053972,31]